[Event "*** Titled Tuesday Blitz"]
[Site "Chess.com"]
[Date "2019.06.04"]
[Round "3"]
[White "matiss90"]
[Black "2165149677570"]
[Result "1-0"]
[WhiteElo "2451"]
[BlackElo "2231"]
[TimeControl "180+2"]
[EndTime "13:37:32 PDT"]
[Termination "matiss90 won by resignation"]

1. e4 {[%clk 0:03:01.9]} 1... c5 {[%clk 0:02:57.1]} 2. Nf3 {[%clk 0:03:02.7]}
2... d6 {[%clk 0:02:58.4]} 3. d4 {[%clk 0:03:03.2]} 3... cxd4 {[%clk 0:03:00.3]}
4. Nxd4 {[%clk 0:03:05.1]} 4... Nf6 {[%clk 0:03:01.9]} 5. Nc3 {[%clk 0:03:06.5]}
5... a6 {[%clk 0:03:03.2]} 6. Bc4 {[%clk 0:03:07.6]} 6... e6 {[%clk 0:03:04.2]}
7. Bb3 {[%clk 0:03:08.9]} 7... Nbd7 {[%clk 0:03:05.4]} 8. Bg5 {[%clk 0:03:09.2]}
8... Nc5 {[%clk 0:03:06.4]} 9. f4 {[%clk 0:03:10.3]} 9... Be7 {[%clk 0:03:07.5]}
10. Qf3 {[%clk 0:03:09.9]} 10... Qc7 {[%clk 0:03:07.8]} 11. O-O {[%clk
0:02:49.6]} 11... b5 {[%clk 0:03:01.2]} 12. a3 {[%clk 0:02:43.1]} 12... Bb7
{[%clk 0:02:59.2]} 13. Rae1 {[%clk 0:02:43.3]} 13... h6 {[%clk 0:02:26.5]} 14.
Bh4 {[%clk 0:02:42]} 14... Nfxe4 {[%clk 0:02:02.5]} 15. Nxe4 {[%clk 0:02:29.9]}
15... Bxh4 {[%clk 0:01:43.1]} 16. Nxe6 {[%clk 0:02:27.1]} 16... Nxe6 {[%clk
0:01:32.5]} 17. Bxe6 {[%clk 0:02:16.7]} 17... Bxe1 {[%clk 0:01:08.7]} 18. Rxe1
{[%clk 0:01:53.2]} 18... O-O {[%clk 0:00:47.6]} 19. Bb3 {[%clk 0:01:01.7]} 19...
Rae8 {[%clk 0:00:37.2]} 20. Kf1 {[%clk 0:01:02.3]} 20... Bxe4 {[%clk 0:00:23.1]}
21. Rxe4 {[%clk 0:01:02.4]} 21... Qc6 {[%clk 0:00:24.7]} 22. Re3 {[%clk
0:00:45.6]} 22... Qxf3+ {[%clk 0:00:21.5]} 23. Rxf3 {[%clk 0:00:46.6]} 23... Re4
{[%clk 0:00:22.6]} 24. g3 {[%clk 0:00:24.5]} 24... Rfe8 {[%clk 0:00:20.8]} 25.
Rd3 {[%clk 0:00:25.3]} 25... Re1+ {[%clk 0:00:20.4]} 26. Kg2 {[%clk 0:00:26.6]}
26... R8e2+ {[%clk 0:00:20.1]} 27. Kf3 {[%clk 0:00:27.6]} 27... Rxh2 {[%clk
0:00:19.5]} 28. Rxd6 {[%clk 0:00:28.6]} 28... Rf1+ {[%clk 0:00:20.5]} 29. Kg4
{[%clk 0:00:27.2]} 29... g6 {[%clk 0:00:14.1]} 30. Rxg6+ {[%clk 0:00:27.2]}
30... Kh7 {[%clk 0:00:15.4]} 31. Bxf7 {[%clk 0:00:21.4]} 31... Rg1 {[%clk
0:00:14]} 32. Kf5 {[%clk 0:00:20]} 32... Rxc2 {[%clk 0:00:13.8]} 33. Bg8+ {[%clk
0:00:16.7]} 33... Kh8 {[%clk 0:00:14.6]} 34. Bd5 {[%clk 0:00:16.8]} 34... Rc5
{[%clk 0:00:11.6]} 35. Rxh6+ {[%clk 0:00:11.1]} 35... Kg7 {[%clk 0:00:13.1]} 36.
Rg6+ {[%clk 0:00:11.7]} 36... Kh7 {[%clk 0:00:14.7]} 37. Rd6 {[%clk 0:00:12.4]}
37... Rd1 {[%clk 0:00:15.2]} 38. Ke6 {[%clk 0:00:11.5]} 38... Re1+ {[%clk
0:00:13.9]} 39. Kf5 {[%clk 0:00:12.2]} 39... Rd1 {[%clk 0:00:13.9]} 40. Ke5
{[%clk 0:00:13.2]} 40... Re1+ {[%clk 0:00:15]} 41. Kd4 {[%clk 0:00:14.3]} 41...
Rc2 {[%clk 0:00:15.7]} 42. Be4+ {[%clk 0:00:15.4]} 42... Rxe4+ {[%clk
0:00:17.3]} 43. Kxe4 {[%clk 0:00:16.7]} 43... Rxb2 {[%clk 0:00:19.2]} 44. g4
{[%clk 0:00:18]} 44... a5 {[%clk 0:00:19.5]} 45. g5 {[%clk 0:00:19.2]} 45... Rb3
{[%clk 0:00:20.1]} 46. Kf5 {[%clk 0:00:20.3]} 46... Rxa3 {[%clk 0:00:21.3]} 47.
Rd7+ {[%clk 0:00:21.7]} 47... Kg8 {[%clk 0:00:22.8]} 48. Kg6 {[%clk 0:00:22.3]}
48... Kf8 {[%clk 0:00:24.2]} 49. f5 {[%clk 0:00:23.7]} 49... Rc3 {[%clk
0:00:23.9]} 50. f6 {[%clk 0:00:22.7]} 50... Rc8 {[%clk 0:00:25.1]} 51. Rh7
{[%clk 0:00:23.1]} 1-0

[Event "*** Titled Tuesday Blitz"]
[Site "Chess.com"]
[Date "2019.06.04"]
[Round "3"]
[White "Fins0905"]
[Black "GadimbayliA"]
[Result "0-1"]
[WhiteElo "2687"]
[BlackElo "2853"]
[TimeControl "180+2"]
[EndTime "13:37:36 PDT"]
[Termination "GadimbayliA won by resignation"]

1. d4 {[%clk 0:03:01.9]} 1... e6 {[%clk 0:02:59.6]} 2. c4 {[%clk 0:03:01.5]}
2... b6 {[%clk 0:03:00.8]} 3. Nc3 {[%clk 0:03:00.6]} 3... Bb7 {[%clk 0:03:01.7]}
4. Nf3 {[%clk 0:03:01.3]} 4... Nf6 {[%clk 0:03:02.8]} 5. g3 {[%clk 0:03:01.3]}
5... Bb4 {[%clk 0:03:03.3]} 6. Bd2 {[%clk 0:02:55]} 6... Bxc3 {[%clk 0:03:00.9]}
7. Bxc3 {[%clk 0:02:55.7]} 7... d6 {[%clk 0:03:02.8]} 8. Bg2 {[%clk 0:02:56.5]}
8... Nbd7 {[%clk 0:03:03.9]} 9. O-O {[%clk 0:02:57.6]} 9... Ne4 {[%clk
0:03:05.1]} 10. Qc2 {[%clk 0:02:51.1]} 10... f5 {[%clk 0:03:02.4]} 11. Nd2
{[%clk 0:02:27.1]} 11... Nxc3 {[%clk 0:02:56.4]} 12. Qxc3 {[%clk 0:02:20.2]}
12... Bxg2 {[%clk 0:02:56.4]} 13. Kxg2 {[%clk 0:02:22.1]} 13... O-O {[%clk
0:02:56.3]} 14. f4 {[%clk 0:02:21.4]} 14... Nf6 {[%clk 0:02:56.2]} 15. Rae1
{[%clk 0:02:17.1]} 15... d5 {[%clk 0:02:52.2]} 16. e3 {[%clk 0:02:11.5]} 16...
Rc8 {[%clk 0:02:49.6]} 17. c5 {[%clk 0:02:06.7]} 17... Qe8 {[%clk 0:02:47.7]}
18. Rc1 {[%clk 0:02:00.9]} 18... Qh5 {[%clk 0:02:48.2]} 19. Qd3 {[%clk
0:01:55.7]} 19... c6 {[%clk 0:02:43.2]} 20. cxb6 {[%clk 0:01:45.7]} 20... axb6
{[%clk 0:02:45.1]} 21. b4 {[%clk 0:01:47]} 21... Kh8 {[%clk 0:02:42.8]} 22. Rc2
{[%clk 0:01:43.7]} 22... g5 {[%clk 0:02:26.4]} 23. fxg5 {[%clk 0:01:32.3]} 23...
Qxg5 {[%clk 0:02:22.8]} 24. Nf3 {[%clk 0:01:33.4]} 24... Qh6 {[%clk 0:01:49.8]}
25. Ne5 {[%clk 0:01:29.4]} 25... Ng4 {[%clk 0:01:50.9]} 26. Nxg4 {[%clk
0:01:26]} 26... fxg4 {[%clk 0:01:52.8]} 27. Rf4 {[%clk 0:01:20.4]} 27... Qh5
{[%clk 0:01:32.5]} 28. Rxc6 {[%clk 0:01:07.3]} 28... Rxc6 {[%clk 0:01:23.9]} 29.
Rxf8+ {[%clk 0:01:07.5]} 29... Kg7 {[%clk 0:01:25.8]} 30. Rf1 {[%clk 0:00:59.1]}
30... Qg6 {[%clk 0:01:22.5]} 31. Qxg6+ {[%clk 0:00:53.5]} 31... Kxg6 {[%clk
0:01:24.4]} 32. Rf2 {[%clk 0:00:44.3]} 32... b5 {[%clk 0:01:25.6]} 33. a4 {[%clk
0:00:24]} 33... bxa4 {[%clk 0:01:26.2]} 34. Ra2 {[%clk 0:00:25.5]} 34... Kf5
{[%clk 0:01:27.4]} 35. Rxa4 {[%clk 0:00:19.8]} 35... Rc2+ {[%clk 0:01:27.6]} 36.
Kg1 {[%clk 0:00:20.4]} 36... Ke4 {[%clk 0:01:28.6]} 37. Ra1 {[%clk 0:00:17.4]}
37... Rb2 {[%clk 0:01:26.4]} 38. Rf1 {[%clk 0:00:17.5]} 38... Rxb4 {[%clk
0:01:25.3]} 39. Rf6 {[%clk 0:00:13.9]} 39... Rb1+ {[%clk 0:01:21.2]} 40. Kg2
{[%clk 0:00:15]} 40... Rb2+ {[%clk 0:01:22.6]} 41. Kg1 {[%clk 0:00:16.2]} 41...
Kxe3 {[%clk 0:01:23.4]} 42. Rxe6+ {[%clk 0:00:17.3]} 42... Kxd4 {[%clk
0:01:20.7]} 43. Rh6 {[%clk 0:00:14.9]} 43... Rb7 {[%clk 0:01:21.9]} 44. Kf2
{[%clk 0:00:12.6]} 44... Kd3 {[%clk 0:01:19.5]} 45. Rh4 {[%clk 0:00:11.1]} 45...
Rg7 {[%clk 0:01:19.4]} 46. h3 {[%clk 0:00:06.9]} 46... Rf7+ {[%clk 0:01:14.4]}
47. Kg2 {[%clk 0:00:07.4]} 47... d4 {[%clk 0:01:11.9]} 48. Rxg4 {[%clk
0:00:07.2]} 48... Ke3 {[%clk 0:01:13.3]} 49. Rg8 {[%clk 0:00:07.8]} 49... d3
{[%clk 0:01:11]} 50. Re8+ {[%clk 0:00:08.4]} 50... Kd2 {[%clk 0:01:09.4]} 51. g4
{[%clk 0:00:08.4]} 51... Rc7 {[%clk 0:01:08]} 52. Rd8 {[%clk 0:00:09.3]} 52...
Kc2 {[%clk 0:01:08.8]} 53. Kf3 {[%clk 0:00:09.6]} 53... d2 {[%clk 0:01:09.7]}
54. h4 {[%clk 0:00:09.2]} 54... d1=Q+ {[%clk 0:01:07.7]} 55. Rxd1 {[%clk
0:00:09.7]} 55... Kxd1 {[%clk 0:01:09.6]} 56. g5 {[%clk 0:00:11.2]} 56... Rc4
{[%clk 0:01:08.9]} 57. Kg3 {[%clk 0:00:10.2]} 57... Ke2 {[%clk 0:01:09.4]} 58.
h5 {[%clk 0:00:11.4]} 58... Ke3 {[%clk 0:01:07.5]} 59. g6 {[%clk 0:00:06.6]}
59... hxg6 {[%clk 0:01:08.6]} 60. h6 {[%clk 0:00:08]} 60... Rc5 {[%clk
0:01:08.7]} 0-1

[Event "*** Titled Tuesday Blitz"]
[Site "Chess.com"]
[Date "2019.06.04"]
[Round "3"]
[White "TristanCalistri"]
[Black "Saitama_Hero"]
[Result "1-0"]
[WhiteElo "2256"]
[BlackElo "2429"]
[TimeControl "180+2"]
[EndTime "13:37:37 PDT"]
[Termination "TristanCalistri won by resignation"]

1. e4 {[%clk 0:03:01.9]} 1... c5 {[%clk 0:03:00.4]} 2. Nf3 {[%clk 0:03:00.9]}
2... d6 {[%clk 0:03:01.7]} 3. Bb5+ {[%clk 0:03:01.4]} 3... Bd7 {[%clk
0:03:01.4]} 4. Bxd7+ {[%clk 0:03:02]} 4... Qxd7 {[%clk 0:03:03.3]} 5. O-O {[%clk
0:03:02.5]} 5... Nf6 {[%clk 0:03:03.6]} 6. e5 {[%clk 0:03:03.4]} 6... dxe5
{[%clk 0:03:03.8]} 7. Nxe5 {[%clk 0:03:05]} 7... Qc7 {[%clk 0:03:04.9]} 8. d4
{[%clk 0:03:05.9]} 8... Nc6 {[%clk 0:03:01.7]} 9. Nxc6 {[%clk 0:01:54.7]} 9...
Qxc6 {[%clk 0:03:03.6]} 10. c4 {[%clk 0:01:56.3]} 10... cxd4 {[%clk 0:03:01.5]}
11. Qxd4 {[%clk 0:01:57.4]} 11... e6 {[%clk 0:03:01.5]} 12. Nc3 {[%clk
0:01:57.5]} 12... Bc5 {[%clk 0:02:57]} 13. Qh4 {[%clk 0:01:57.8]} 13... O-O
{[%clk 0:02:55.8]} 14. Bg5 {[%clk 0:01:57.3]} 14... Be7 {[%clk 0:02:56.6]} 15.
b3 {[%clk 0:01:36.8]} 15... h6 {[%clk 0:02:54.7]} 16. Be3 {[%clk 0:01:37.8]}
16... a6 {[%clk 0:02:33.2]} 17. h3 {[%clk 0:01:27.8]} 17... b5 {[%clk
0:02:27.2]} 18. Rac1 {[%clk 0:01:14.6]} 18... bxc4 {[%clk 0:02:26.2]} 19. Na4
{[%clk 0:01:15.4]} 19... Nd5 {[%clk 0:02:08]} 20. Qe4 {[%clk 0:01:04.4]} 20...
c3 {[%clk 0:02:03]} 21. Rxc3 {[%clk 0:00:59.2]} 21... Qb5 {[%clk 0:01:48.2]} 22.
Rc4 {[%clk 0:00:55.1]} 22... Rac8 {[%clk 0:01:33.3]} 23. Rfc1 {[%clk 0:00:55.5]}
23... Rxc4 {[%clk 0:01:31.1]} 24. Rxc4 {[%clk 0:00:57.4]} 24... Nxe3 {[%clk
0:01:23.6]} 25. Qxe3 {[%clk 0:00:58.1]} 25... Rd8 {[%clk 0:01:22.4]} 26. Nc3
{[%clk 0:00:43.4]} 26... Qf5 {[%clk 0:01:17.4]} 27. Qe2 {[%clk 0:00:33.3]} 27...
Bg5 {[%clk 0:00:57]} 28. Ne4 {[%clk 0:00:26.7]} 28... Bf4 {[%clk 0:00:56.6]} 29.
g3 {[%clk 0:00:20.2]} 29... Be5 {[%clk 0:00:56.5]} 30. Kg2 {[%clk 0:00:20.4]}
30... Bd4 {[%clk 0:00:47.5]} 31. Nd2 {[%clk 0:00:17.8]} 31... Bxf2 {[%clk
0:00:36.6]} 32. Rf4 {[%clk 0:00:07.6]} 32... Qd5+ {[%clk 0:00:35.8]} 33. Ne4
{[%clk 0:00:07.7]} 33... Bb6 {[%clk 0:00:30.9]} 34. Kh2 {[%clk 0:00:06.2]} 34...
f5 {[%clk 0:00:24.6]} 35. Nc3 {[%clk 0:00:05.7]} 35... Qd2 {[%clk 0:00:23]} 36.
Qxd2 {[%clk 0:00:04.4]} 36... Rxd2+ {[%clk 0:00:24.1]} 37. Kh1 {[%clk
0:00:05.9]} 37... Bc7 {[%clk 0:00:19.8]} 38. Rf3 {[%clk 0:00:05.2]} 38... g6
{[%clk 0:00:19.8]} 39. g4 {[%clk 0:00:05.1]} 39... Kg7 {[%clk 0:00:18.4]} 40. a4
{[%clk 0:00:04.7]} 40... Kf6 {[%clk 0:00:18.5]} 41. b4 {[%clk 0:00:03.9]} 41...
e5 {[%clk 0:00:19.7]} 42. b5 {[%clk 0:00:03.9]} 42... axb5 {[%clk 0:00:21.6]}
43. axb5 {[%clk 0:00:04.7]} 43... e4 {[%clk 0:00:21.4]} 44. Nxe4+ {[%clk
0:00:05.4]} 44... Ke5 {[%clk 0:00:20]} 45. Nxd2 {[%clk 0:00:07.3]} 45... f4
{[%clk 0:00:19.3]} 46. Kg2 {[%clk 0:00:07.3]} 46... g5 {[%clk 0:00:19]} 47. Kf1
{[%clk 0:00:08.3]} 47... Bb6 {[%clk 0:00:20.4]} 48. Ke2 {[%clk 0:00:09.5]} 48...
Kd5 {[%clk 0:00:21.2]} 49. Kd3 {[%clk 0:00:10.4]} 49... Kc5 {[%clk 0:00:22.3]}
50. Nc4 {[%clk 0:00:10.9]} 50... Kd5 {[%clk 0:00:24.2]} 51. Nxb6+ {[%clk
0:00:11.6]} 1-0

[Event "*** Titled Tuesday Blitz"]
[Site "Chess.com"]
[Date "2019.06.04"]
[Round "3"]
[White "penguingm1"]
[Black "Zubrrr"]
[Result "0-1"]
[WhiteElo "2909"]
[BlackElo "2704"]
[TimeControl "180+2"]
[EndTime "13:37:39 PDT"]
[Termination "Zubrrr won by resignation"]

1. d4 {[%clk 0:03:01.9]} 1... d5 {[%clk 0:03:00]} 2. Bf4 {[%clk 0:03:02]} 2...
c5 {[%clk 0:03:00.6]} 3. e3 {[%clk 0:03:02.3]} 3... Nc6 {[%clk 0:03:01.4]} 4.
Nf3 {[%clk 0:03:03.4]} 4... Nf6 {[%clk 0:02:55.3]} 5. Nbd2 {[%clk 0:03:03.9]}
5... Bg4 {[%clk 0:02:55.5]} 6. c3 {[%clk 0:03:03.5]} 6... e6 {[%clk 0:02:56.4]}
7. Qb3 {[%clk 0:03:04.2]} 7... Qb6 {[%clk 0:02:45.7]} 8. Qxb6 {[%clk 0:03:03.3]}
8... axb6 {[%clk 0:02:46.4]} 9. Bb5 {[%clk 0:03:04.7]} 9... Nd7 {[%clk
0:02:45.6]} 10. a4 {[%clk 0:02:46.5]} 10... Be7 {[%clk 0:02:36.8]} 11. Ne5
{[%clk 0:02:44.5]} 11... Ndxe5 {[%clk 0:02:28.7]} 12. Bxe5 {[%clk 0:02:46.4]}
12... f6 {[%clk 0:02:28.9]} 13. Bc7 {[%clk 0:02:46.6]} 13... Bd8 {[%clk
0:02:30]} 14. Bd6 {[%clk 0:02:45.9]} 14... Be7 {[%clk 0:02:31]} 15. Bc7 {[%clk
0:02:44]} 15... Bd8 {[%clk 0:02:31.6]} 16. Bg3 {[%clk 0:02:45.5]} 16... Kd7
{[%clk 0:02:03.9]} 17. f3 {[%clk 0:02:34.6]} 17... Bh5 {[%clk 0:02:03.5]} 18.
Nb3 {[%clk 0:02:20.9]} 18... c4 {[%clk 0:02:00.7]} 19. Nd2 {[%clk 0:02:20]}
19... Bc7 {[%clk 0:02:01.1]} 20. e4 {[%clk 0:02:19.4]} 20... Bg6 {[%clk
0:01:52.5]} 21. Kf2 {[%clk 0:02:18.7]} 21... Bxg3+ {[%clk 0:01:27.6]} 22. hxg3
{[%clk 0:02:20.6]} 22... Kc7 {[%clk 0:01:11.1]} 23. exd5 {[%clk 0:01:26.5]}
23... exd5 {[%clk 0:01:11.7]} 24. Rhe1 {[%clk 0:01:27.3]} 24... Rhe8 {[%clk
0:01:04.2]} 25. Nf1 {[%clk 0:01:09.1]} 25... Rxe1 {[%clk 0:00:58.8]} 26. Rxe1
{[%clk 0:01:09.7]} 26... Kd6 {[%clk 0:01:00.4]} 27. Ne3 {[%clk 0:00:12.5]} 27...
Na7 {[%clk 0:00:35.7]} 28. Bxc4 {[%clk 0:00:13.8]} 28... dxc4 {[%clk 0:00:36.5]}
29. Nxc4+ {[%clk 0:00:15.7]} 29... Kc6 {[%clk 0:00:30.3]} 30. Re7 {[%clk
0:00:17.1]} 30... Nc8 {[%clk 0:00:27.6]} 31. Rxg7 {[%clk 0:00:18]} 31... Rxa4
{[%clk 0:00:27.8]} 32. Na3 {[%clk 0:00:09.2]} 32... Nd6 {[%clk 0:00:24]} 33. Rg8
{[%clk 0:00:09.7]} 33... b5 {[%clk 0:00:23.6]} 34. Rd8 {[%clk 0:00:04.3]} 34...
b4 {[%clk 0:00:23.3]} 35. cxb4 {[%clk 0:00:05.8]} 35... Rxb4 {[%clk 0:00:24.6]}
36. Ke3 {[%clk 0:00:03.3]} 36... Kc7 {[%clk 0:00:21.4]} 37. Ra8 {[%clk
0:00:04.3]} 37... Rxb2 {[%clk 0:00:20.9]} 38. g4 {[%clk 0:00:05.9]} 38... Rxg2
{[%clk 0:00:19.4]} 39. d5 {[%clk 0:00:07.2]} 39... Rb2 {[%clk 0:00:19]} 40. Kd4
{[%clk 0:00:08.4]} 40... Rb3 {[%clk 0:00:19.7]} 41. f4 {[%clk 0:00:07.8]} 41...
Rxa3 {[%clk 0:00:20.3]} 42. Rg8 {[%clk 0:00:08.3]} 42... Ra4+ {[%clk 0:00:20.8]}
43. Ke3 {[%clk 0:00:09]} 43... Re4+ {[%clk 0:00:21.2]} 44. Kf3 {[%clk
0:00:10.5]} 44... Rd4 {[%clk 0:00:21.8]} 45. Rg7+ {[%clk 0:00:10.1]} 45... Kb6
{[%clk 0:00:22.4]} 46. f5 {[%clk 0:00:10.7]} 46... Nxf5 {[%clk 0:00:21.4]} 47.
gxf5 {[%clk 0:00:11.5]} 47... Bxf5 {[%clk 0:00:23.3]} 48. Rf7 {[%clk 0:00:12.8]}
48... Rxd5 {[%clk 0:00:24.2]} 49. Rxf6+ {[%clk 0:00:14]} 49... Kc5 {[%clk
0:00:25.7]} 50. Kf4 {[%clk 0:00:15.4]} 50... b5 {[%clk 0:00:26.3]} 51. Rf8
{[%clk 0:00:15.8]} 51... Kd4 {[%clk 0:00:24.6]} 0-1

[Event "*** Titled Tuesday Blitz"]
[Site "Chess.com"]
[Date "2019.06.04"]
[Round "3"]
[White "LazovT"]
[Black "Pechen_Yeltsina"]
[Result "1-0"]
[WhiteElo "2587"]
[BlackElo "2682"]
[TimeControl "180+2"]
[EndTime "13:37:45 PDT"]
[Termination "LazovT won by resignation"]

1. e4 {[%clk 0:03:01.9]} 1... g6 {[%clk 0:03:00.5]} 2. d4 {[%clk 0:03:02.4]}
2... Bg7 {[%clk 0:03:02.2]} 3. Nc3 {[%clk 0:03:04.1]} 3... d6 {[%clk 0:03:03.6]}
4. f4 {[%clk 0:03:04.3]} 4... a6 {[%clk 0:03:04.5]} 5. Nf3 {[%clk 0:03:03.1]}
5... b5 {[%clk 0:03:05.9]} 6. Bd3 {[%clk 0:03:04.4]} 6... Bb7 {[%clk 0:03:07.3]}
7. Qe2 {[%clk 0:02:58.4]} 7... Nd7 {[%clk 0:03:07.1]} 8. e5 {[%clk 0:02:57.6]}
8... Nb6 {[%clk 0:03:07]} 9. a4 {[%clk 0:02:52.9]} 9... b4 {[%clk 0:03:06.9]}
10. Ne4 {[%clk 0:02:53]} 10... Nh6 {[%clk 0:03:07.1]} 11. Nf6+ {[%clk 0:02:33]}
11... exf6 {[%clk 0:02:55.3]} 12. exf6+ {[%clk 0:02:34.9]} 12... Kf8 {[%clk
0:02:56.8]} 13. fxg7+ {[%clk 0:02:36.1]} 13... Kxg7 {[%clk 0:02:58.7]} 14. O-O
{[%clk 0:02:36.7]} 14... Re8 {[%clk 0:02:54.7]} 15. Qf2 {[%clk 0:02:36.6]} 15...
Ng4 {[%clk 0:02:49]} 16. Qg3 {[%clk 0:02:34.9]} 16... f5 {[%clk 0:02:44.6]} 17.
h3 {[%clk 0:02:31]} 17... Nh6 {[%clk 0:02:43.2]} 18. Bd2 {[%clk 0:02:16.5]}
18... Nd5 {[%clk 0:02:38.2]} 19. a5 {[%clk 0:02:12.4]} 19... Qd7 {[%clk
0:02:35.7]} 20. Nh4 {[%clk 0:01:41.8]} 20... Kh8 {[%clk 0:02:29.5]} 21. c4
{[%clk 0:01:39.2]} 21... bxc3 {[%clk 0:02:30.2]} 22. bxc3 {[%clk 0:01:41.1]}
22... Nf6 {[%clk 0:02:30.2]} 23. c4 {[%clk 0:01:29.2]} 23... Be4 {[%clk
0:02:15.3]} 24. d5 {[%clk 0:01:27.4]} 24... Bxd3 {[%clk 0:02:16.1]} 25. Qxd3
{[%clk 0:01:29.3]} 25... Ne4 {[%clk 0:02:17.5]} 26. Be3 {[%clk 0:01:27.9]} 26...
c5 {[%clk 0:02:09.2]} 27. dxc6 {[%clk 0:01:24.5]} 27... Qxc6 {[%clk 0:02:10.6]}
28. Nf3 {[%clk 0:01:26]} 28... Nf7 {[%clk 0:02:04]} 29. Qd5 {[%clk 0:01:22.2]}
29... Qxd5 {[%clk 0:01:59.7]} 30. cxd5 {[%clk 0:01:24.1]} 30... Kg8 {[%clk
0:01:54.9]} 31. Rfd1 {[%clk 0:00:43.4]} 31... Nc3 {[%clk 0:01:49.8]} 32. Rd3
{[%clk 0:00:43.8]} 32... Nxd5 {[%clk 0:01:49.4]} 33. Bd2 {[%clk 0:00:41.6]}
33... Nf6 {[%clk 0:01:50.2]} 34. Nd4 {[%clk 0:00:39.2]} 34... Ne4 {[%clk
0:01:49.3]} 35. Bb4 {[%clk 0:00:39.2]} 35... Rab8 {[%clk 0:01:43.4]} 36. Ba3
{[%clk 0:00:39.2]} 36... Rec8 {[%clk 0:01:41.9]} 37. Kh2 {[%clk 0:00:38.2]}
37... Rc3 {[%clk 0:01:36.7]} 38. Rxc3 {[%clk 0:00:37.9]} 38... Nxc3 {[%clk
0:01:38.6]} 39. Nc6 {[%clk 0:00:37.9]} 39... Rb3 {[%clk 0:01:35.6]} 40. Bc1
{[%clk 0:00:33.3]} 40... Nd5 {[%clk 0:01:29.1]} 41. Bd2 {[%clk 0:00:32.9]} 41...
Rd3 {[%clk 0:01:28.6]} 42. Ra2 {[%clk 0:00:32.6]} 42... Kf8 {[%clk 0:01:24.9]}
43. Rb2 {[%clk 0:00:33.8]} 43... Ke8 {[%clk 0:01:06.1]} 44. Nb8 {[%clk 0:00:34]}
44... Nc7 {[%clk 0:01:04.8]} 45. Be1 {[%clk 0:00:33.7]} 45... Nd8 {[%clk
0:01:02.8]} 46. Bf2 {[%clk 0:00:33.5]} 46... Rd5 {[%clk 0:00:53.7]} 47. Bb6
{[%clk 0:00:33.7]} 47... Nde6 {[%clk 0:00:54.8]} 48. Rc2 {[%clk 0:00:31.6]}
48... Nb5 {[%clk 0:00:19.2]} 49. Nxa6 {[%clk 0:00:31.4]} 49... Ned4 {[%clk
0:00:18.4]} 50. Rc8+ {[%clk 0:00:28.9]} 50... Kd7 {[%clk 0:00:19.9]} 51. Rd8+
{[%clk 0:00:30.1]} 51... Kc6 {[%clk 0:00:20]} 52. Nb4+ {[%clk 0:00:28.7]} 1-0

[Event "*** Titled Tuesday Blitz"]
[Site "Chess.com"]
[Date "2019.06.04"]
[Round "3"]
[White "Gahan-MG"]
[Black "colemman"]
[Result "0-1"]
[WhiteElo "2647"]
[BlackElo "2610"]
[TimeControl "180+2"]
[EndTime "13:37:45 PDT"]
[Termination "colemman won by checkmate"]

1. e4 {[%clk 0:03:01.9]} 1... c5 {[%clk 0:03:00.4]} 2. c3 {[%clk 0:03:02.4]}
2... e6 {[%clk 0:03:02.3]} 3. d4 {[%clk 0:03:02.2]} 3... Nf6 {[%clk 0:03:03.9]}
4. e5 {[%clk 0:03:03.1]} 4... Nd5 {[%clk 0:03:05.5]} 5. Nf3 {[%clk 0:03:03.9]}
5... cxd4 {[%clk 0:03:05.6]} 6. cxd4 {[%clk 0:03:03]} 6... b6 {[%clk 0:03:06.1]}
7. Bd3 {[%clk 0:03:03.4]} 7... Bb7 {[%clk 0:03:06.5]} 8. O-O {[%clk 0:03:04.6]}
8... d6 {[%clk 0:03:06.2]} 9. a3 {[%clk 0:03:03.8]} 9... Nd7 {[%clk 0:03:03.4]}
10. Qe2 {[%clk 0:03:04.6]} 10... Rc8 {[%clk 0:03:01]} 11. Bd2 {[%clk 0:03:01.2]}
11... dxe5 {[%clk 0:02:59.2]} 12. Nxe5 {[%clk 0:03:01.8]} 12... Bd6 {[%clk
0:02:51]} 13. Nc3 {[%clk 0:02:50.7]} 13... O-O {[%clk 0:02:40.5]} 14. Rac1
{[%clk 0:02:42.3]} 14... Bxe5 {[%clk 0:02:34.3]} 15. dxe5 {[%clk 0:02:42]} 15...
Nc5 {[%clk 0:02:34.6]} 16. Bc2 {[%clk 0:02:33.8]} 16... Ba6 {[%clk 0:02:33.1]}
17. Nb5 {[%clk 0:02:26.1]} 17... Nc7 {[%clk 0:02:16.8]} 18. a4 {[%clk
0:02:20.8]} 18... Nxb5 {[%clk 0:02:08.9]} 19. axb5 {[%clk 0:02:20.4]} 19... Bxb5
{[%clk 0:02:08.4]} 20. Qxb5 {[%clk 0:02:09.7]} 20... Qxd2 {[%clk 0:02:08.2]} 21.
Rfd1 {[%clk 0:01:31.1]} 21... Qf4 {[%clk 0:02:07.7]} 22. Qe2 {[%clk 0:01:28]}
22... Rfd8 {[%clk 0:02:00.5]} 23. g3 {[%clk 0:01:19.6]} 23... Qb4 {[%clk
0:01:55.5]} 24. f4 {[%clk 0:01:17.2]} 24... g6 {[%clk 0:01:42.6]} 25. Rxd8+
{[%clk 0:00:59.2]} 25... Rxd8 {[%clk 0:01:41.7]} 26. Rd1 {[%clk 0:01:00.4]}
26... Rc8 {[%clk 0:01:29.3]} 27. Qg4 {[%clk 0:00:32]} 27... Qxb2 {[%clk
0:01:25.2]} 28. Qg5 {[%clk 0:00:30.1]} 28... Nb7 {[%clk 0:01:07.9]} 29. Ba4
{[%clk 0:00:19]} 29... b5 {[%clk 0:00:59.8]} 30. Qe7 {[%clk 0:00:17.5]} 30...
bxa4 {[%clk 0:00:56.2]} 31. Rf1 {[%clk 0:00:09.7]} 31... a3 {[%clk 0:00:51.1]}
32. f5 {[%clk 0:00:10.9]} 32... Qxe5 {[%clk 0:00:39.8]} 33. fxg6 {[%clk
0:00:11.6]} 33... Qe3+ {[%clk 0:00:36.5]} 34. Kh1 {[%clk 0:00:08.3]} 34... Qe4+
{[%clk 0:00:37.4]} 35. Kg1 {[%clk 0:00:09.6]} 35... Qxg6 {[%clk 0:00:37.7]} 36.
Qxb7 {[%clk 0:00:10.8]} 36... Rc2 {[%clk 0:00:33.6]} 37. Qxa7 {[%clk 0:00:09.2]}
37... a2 {[%clk 0:00:31.1]} 38. Qb8+ {[%clk 0:00:09.3]} 38... Kg7 {[%clk
0:00:32.1]} 39. Qe5+ {[%clk 0:00:10.5]} 39... Kf8 {[%clk 0:00:26.9]} 40. Qb8+
{[%clk 0:00:08.7]} 40... Ke7 {[%clk 0:00:26.9]} 41. Qa7+ {[%clk 0:00:09.3]}
41... Kf8 {[%clk 0:00:22.4]} 42. Qb8+ {[%clk 0:00:10.2]} 42... Kg7 {[%clk
0:00:23.9]} 43. Qe5+ {[%clk 0:00:11]} 43... f6 {[%clk 0:00:24.7]} 44. Qxe6
{[%clk 0:00:05.4]} 44... Qf7 {[%clk 0:00:26.3]} 45. Qe4 {[%clk 0:00:04.6]} 45...
Qa7+ {[%clk 0:00:25.4]} 46. Kh1 {[%clk 0:00:05.2]} 46... a1=Q {[%clk 0:00:24.2]}
47. Qg4+ {[%clk 0:00:04.8]} 47... Kh8 {[%clk 0:00:23.4]} 48. Qf5 {[%clk
0:00:03.4]} 48... Qb7+ {[%clk 0:00:21.6]} 49. Kg1 {[%clk 0:00:03.2]} 49... Qaa7+
{[%clk 0:00:23.1]} 50. Rf2 {[%clk 0:00:03.6]} 50... Rc1# {[%clk 0:00:22.4]} 0-1